bitfinex/quotes_SOLUSD_20240808
["timestamp","ask_amount","ask_price","bid_price","bid_amount"]
[1723091463240,0.17,153.46,153.39,16.4976]
[1723091463447,0.34,153.46,153.39,16.4976]
[1723091463769,20.0,153.48,153.39,16.4976]
[1723091464066,26.5159,153.48,153.39,16.4976]
[1723091464242,6.5167,153.46,153.39,16.4976]
[1723091464954,6.6869,153.45,153.39,16.4976]
[1723091465158,6.5163,153.46,153.39,16.4976]
[1723091465561,6.6859,153.47,153.39,16.4976]
[1723091465762,6.5142,153.51,153.39,16.4976]
[1723091466058,395.6138,153.52,153.4,6.5069]
[1723091466257,389.1,153.52,153.4,6.5069]
[1723091466463,13.27881482,153.55,153.41,45.17]
[1723091466640,13.0073,153.54,153.41,45.17]
[1723091466844,6.513,153.54,153.42,15.3879]
[1723091467248,36.71,153.52,153.42,15.3879]
[1723091467451,1.29808497,153.51,153.42,15.3879]
[1723091467657,6.515,153.49,153.42,15.3879]
[1723091467966,7.81308497,153.49,153.42,15.3879]
[1723091468165,1.29808497,153.48,153.42,15.3879]
[1723091468546,20.0,153.51,153.42,15.3879]
[1723091469863,6.76601482,153.55,153.42,15.3879]
[1723091469864,6.76601482,153.55,153.43,46.01192262]
[1723091470452,6.76601482,153.55,153.46,15.4836]
[1723091470671,6.76601482,153.55,153.47,46.47270688]
[1723091470843,6.76601482,153.55,153.46,15.4836]
[1723091471048,6.5142,153.52,153.46,15.4836]
[1723091471241,6.76601482,153.55,153.46,15.4836]
[1723091471967,6.4172,153.54,153.37,21.6292]
[1723091472171,21.29808497,153.53,153.38,45.34]
[1723091472375,0.34,153.52,153.38,45.34]
[1723091472570,1.29808497,153.51,153.38,45.34]
[1723091472883,6.77022026,153.52,153.4,6.4579]
[1723091473050,6.5121,153.56,153.42,15.4625]
[1723091473404,13.28194658,153.56,153.44,6.4579]
[1723091473559,13.28194658,153.56,153.45,0.17]
[1723091473761,13.28194658,153.56,153.45,45.17]
[1723091474067,6.76984658,153.56,153.46,17.94176087]
[1723091474270,6.76984658,153.56,153.47,45.0]
[1723091476272,6.5137,153.53,153.46,16.639]
[1723091476456,6.5138,153.52,153.46,16.639]
[1723091476650,1.29808497,153.51,153.46,16.639]
[1723091476979,21.46808497,153.55,153.46,16.639]
[1723091477777,6.5138,153.52,153.46,16.639]
[1723091477953,1.29808497,153.51,153.46,16.639]
[1723091478152,6.5147,153.5,153.46,16.639]
[1723091478455,6.5147,153.5,153.36,36.71]
[1723091478456,1.29808497,153.49,153.42,15.8862]
[1723091478662,6.5142,153.51,153.42,15.8862]
[1723091478870,1.29808497,153.53,153.42,15.8862]
[1723091478871,6.5137,153.53,153.42,15.8862]
[1723091479051,6.93984658,153.56,153.42,15.8862]
[1723091479052,13.28194658,153.56,153.44,6.3044]
[1723091479256,1.29808497,153.55,153.44,6.3044]
[1723091479569,6.5144,153.51,153.44,6.3044]
[1723091479759,1.29808497,153.5,153.44,6.3044]
[1723091480166,7.81278497,153.5,153.44,6.3044]
[1723091480365,1.29808497,153.49,153.44,6.3044]
[1723091481483,6.5155,153.48,153.42,15.8862]
[1723091481662,15.1542,153.53,153.42,15.8862]
[1723091481663,1.29808497,153.47,153.42,15.8862]
[1723091481980,1.29808497,153.47,153.4,6.1637]
[1723091481981,6.1236,153.49,153.37,16.2348]
[1723091482276,6.5167,153.45,153.37,16.2348]
[1723091482663,6.5161,153.47,153.37,16.2348]
[1723091482872,0.34,153.48,153.37,16.2348]
[1723091482873,0.17,153.48,153.37,16.2348]
[1723091483167,20.0,153.48,153.38,1.30322203]
[1723091483375,26.5155,153.48,153.37,16.2348]
[1723091484174,21.29808497,153.48,153.37,16.2348]
[1723091484360,0.17,153.47,153.37,16.2348]
[1723091484562,6.5167,153.45,153.37,16.2348]
[1723091485093,6.5164,153.46,153.37,16.2348]
[1723091485659,6.5159,153.47,153.37,16.2348]
[1723091485984,6.76077491,153.5,153.37,16.2348]
[1723091486181,6.5155,153.48,153.37,16.2348]
[1723091486768,395.86027261,153.51,153.38,46.30351757]
[1723091487069,395.86027261,153.51,153.38,45.0]
[1723091487070,6.5155,153.48,153.38,45.0]
[1723091487392,6.5155,153.48,153.37,16.2348]
[1723091490860,1.29808497,153.5,153.37,16.2348]
[1723091491066,6.5155,153.48,153.37,16.2348]
[1723091491366,6.686,153.47,153.37,16.2348]
[1723091491970,6.5163,153.46,153.37,16.2348]
[1723091492377,0.17,153.47,153.37,16.2348]
[1723091492590,6.5177,153.43,153.37,16.2348]
[1723091492767,6.5173,153.44,153.37,16.2348]
[1723091498174,6.5167,153.45,153.37,16.2348]
[1723091498687,6.5162,153.47,153.37,16.2348]
[1723091498891,6.5162,153.47,153.38,1.3035563]
[1723091499281,395.6155,153.48,153.37,16.2348]
[1723091499473,395.6155,153.48,153.38,1.30313434]
[1723091500078,1.29808497,153.47,153.38,45.0]
[1723091500392,1.29808497,153.47,153.37,16.2348]
[1723091501295,6.5165,153.46,153.37,16.2348]
[1723091501473,6.5159,153.47,153.37,16.2348]
[1723091502183,9.12374794,153.49,153.37,16.2348]
[1723091502403,9.12374794,153.49,153.38,45.0]
[1723091502604,6.5155,153.48,153.38,45.0]
[1723091504179,7.81428497,153.47,153.38,45.0]
[1723091505085,6.5167,153.46,153.37,16.2348]
[1723091505986,6.5168,153.45,153.37,16.2348]
[1723091506387,6.5174,153.44,153.37,16.2348]
[1723091506597,6.5176,153.43,153.37,16.2348]
[1723091506789,1.29808497,153.48,153.37,16.2348]
[1723091506989,0.34,153.47,153.37,16.2348]
[1723091507278,1.46808497,153.46,153.37,16.2348]
[1723091507601,6.5174,153.44,153.37,16.2348]
[1723091509503,1.29808497,153.44,153.37,16.2348]
[1723091509703,21.29808497,153.46,153.37,16.2348]
[1723091510013,6.5178,153.43,153.37,16.2348]
[1723091510185,6.5172,153.44,153.37,16.2348]
[1723091510386,6.5178,153.43,153.37,16.2348]
[1723091510700,7.81648497,153.42,153.37,16.2348]
[1723091510876,6.5184,153.42,153.37,16.2348]
[1723091511079,1.29808497,153.41,153.37,16.2348]
[1723091511302,6.5188,153.41,153.37,16.2348]
[1723091511804,389.1,153.44,153.37,16.2348]
[1723091512011,6.5185,153.41,153.37,16.2348]
[1723091512706,0.34,153.43,153.37,16.2348]
[1723091512896,20.34,153.43,153.37,16.2348]
[1723091513309,6.5198,153.38,153.32,0.834356]
[1723091513482,1.29808497,153.37,153.32,0.834356]
[1723091513688,6.5193,153.39,153.32,0.834356]
[1723091513912,1.29808497,153.39,153.32,0.834356]
[1723091514086,6.5194,153.39,153.32,0.834356]
[1723091514415,6.5189,153.4,153.32,0.834356]
[1723091514588,26.76670135,153.43,153.32,0.834356]
[1723091514786,6.518,153.42,153.32,0.834356]
[1723091515098,6.5185,153.41,153.32,0.834356]
[1723091515409,21.29808497,153.43,153.32,0.834356]
[1723091515582,6.5189,153.4,153.32,0.334356]
[1723091515788,20.0,153.43,153.32,0.334356]
[1723091516095,6.5193,153.39,153.32,0.334356]
[1723091516401,6.5189,153.4,153.32,0.334356]
[1723091516598,1.63808497,153.42,153.32,0.334356]
[1723091516800,6.519,153.4,153.32,0.334356]
[1723091516987,1.29808497,153.4,153.32,0.334356]
[1723091517188,6.5193,153.39,153.32,0.334356]
[1723091517400,1.46808497,153.42,153.32,0.334356]
[1723091517703,0.17,153.41,153.32,0.334356]
[1723091517893,6.5197,153.39,153.32,0.334356]
[1723091518707,6.5189,153.4,153.32,0.334356]
[1723091519611,26.5176,153.43,153.32,0.334356]
[1723091519782,389.1,153.44,153.33,22.9132]
[1723091519986,6.518,153.42,153.33,22.9132]
[1723091520205,1.29808497,153.42,153.33,16.301]
[1723091520407,7.81648497,153.42,153.33,16.301]
[1723091520717,6.519,153.4,153.33,16.301]
[1723091521214,7.81758497,153.39,153.33,16.301]
[1723091521715,6.9779,153.4,153.32,0.334356]
[1723091521884,1.29808497,153.39,153.32,0.334356]
[1723091522090,6.5194,153.39,153.32,0.334356]
[1723091522808,6.5206,153.36,153.32,0.334356]
[1723091523128,6.5215,153.34,153.32,0.334356]
[1723091523419,6.5218,153.33,153.32,0.334356]
[1723091523612,6.5218,153.33,153.25,16.6558]
[1723091523613,65.17,153.33,153.25,16.6558]
[1723091523789,6.5239,153.29,153.25,16.6558]
[1723091523994,0.17,153.3,153.25,16.6558]
[1723091524195,1.29808497,153.31,153.25,16.6558]
[1723091524501,1.29808497,153.31,153.21,15.3452]
[1723091524502,6.5245,153.27,153.21,15.3452]
[1723091524718,0.17,153.28,153.21,15.3452]
[1723091524913,6.5248,153.26,153.21,15.3452]
[1723091525412,1.29808497,153.26,153.17,15.3452]
[1723091525714,0.34,153.25,153.17,15.3452]
[1723091526287,0.17,153.25,153.17,15.3452]
[1723091526497,20.0,153.28,153.17,15.3452]
[1723091526725,20.0,153.29,153.17,15.3452]
[1723091527208,0.34,153.28,153.17,15.3452]
[1723091527417,1.29808497,153.27,153.17,15.3452]
[1723091527621,6.5253,153.25,153.17,15.3452]
[1723091527803,20.0,153.27,153.17,15.3452]
[1723091528112,389.1,153.32,153.17,52.0552]
[1723091528292,15.3563,153.37,153.22,6.235]
[1723091528709,1.29808497,153.36,153.22,6.235]
[1723091529101,6.5698,153.39,153.23,1.30499231]
[1723091529286,395.6698,153.39,153.26,36.71]
[1723091529718,6.5201,153.37,153.26,36.71]
[1723091530293,1.29808497,153.37,153.25,16.3199]
[1723091530527,6.5217,153.34,153.25,16.3199]
[1723091530699,1.29808497,153.33,153.25,16.3199]
[1723091530902,6.691,153.36,153.25,16.3199]
[1723091531195,26.521,153.35,153.25,16.3199]
[1723091531409,6.5215,153.34,153.25,16.3199]
[1723091531609,1.29808497,153.33,153.25,16.3199]
[1723091532324,6.5225,153.32,153.25,16.3199]
[1723091532623,1.29808497,153.34,153.25,16.3199]
[1723091532824,1.29808497,153.33,153.25,16.3199]
[1723091533032,6.691,153.36,153.25,16.3199]
[1723091533209,6.521,153.36,153.25,16.3199]
[1723091533613,7.81908497,153.35,153.25,16.3199]
[1723091533833,1.29808497,153.35,153.25,16.3199]
[1723091534334,21.29808497,153.35,153.25,16.3199]
[1723091534513,1.29808497,153.35,153.25,16.3199]
[1723091535328,0.17,153.34,153.25,16.3199]
[1723091535506,6.5227,153.31,153.25,16.3199]
[1723091535705,6.5231,153.3,153.25,16.3199]
[1723091535909,6.5235,153.3,153.25,16.3199]
[1723091536125,6.5238,153.29,153.25,16.3199]
[1723091536331,0.34,153.31,153.22,6.235]
[1723091536543,1.29808497,153.3,153.22,6.235]
[1723091536707,1.63808497,153.31,153.22,6.235]
[1723091537135,21.63808497,153.31,153.22,6.235]
[1723091537518,6.5241,153.28,153.22,6.235]
[1723091537710,6.5244,153.27,153.22,6.235]
[1723091537912,1.63808497,153.29,153.22,6.235]
[1723091538117,389.1,153.28,153.18,6.413]
[1723091538317,6.5265,153.22,153.17,16.4742]
[1723091538518,7.82508497,153.21,153.17,16.4742]
[1723091538830,6.527,153.21,153.17,16.4742]
[1723091539032,1.29808497,153.2,153.17,16.4742]
[1723091539331,7.82558497,153.2,153.14,6.413]
[1723091539527,6.5275,153.2,153.14,6.413]
[1723091539840,0.17,153.21,153.14,6.413]
[1723091540131,1.29808497,153.21,153.14,6.413]
[1723091540317,0.34,153.2,153.14,6.413]
[1723091540523,0.17,153.2,153.14,6.413]
[1723091540736,0.17,153.2,153.13,16.4742]
[1723091540914,6.5279,153.19,153.13,16.4742]
[1723091541114,7.82548497,153.2,153.13,16.4742]
[1723091541444,7.99598497,153.19,153.13,16.4742]
[1723091541733,6.5283,153.18,153.1,6.413]
[1723091541948,8.16668497,153.17,153.1,6.413]
[1723091542254,28.16668497,153.17,153.1,6.413]
[1723091542415,26.8686,153.17,153.1,6.413]
[1723091543732,26.8686,153.17,153.09,15.0609]
[1723091543733,28.16668497,153.17,153.09,15.0609]
[1723091543932,73.16668497,153.17,153.09,15.0609]
[1723091544516,71.8686,153.17,153.09,15.0609]
[1723091544734,26.8686,153.17,153.09,15.0609]
[1723091545043,20.34,153.17,153.09,15.0609]
[1723091545229,26.8686,153.17,153.09,15.0609]
[1723091545547,22.7622,153.23,153.09,15.0609]
[1723091545548,6.75687927,153.19,153.09,15.0609]
[1723091545751,1.29808497,153.23,153.14,6.0706]
[1723091545919,1.29808497,153.21,153.14,6.0706]
[1723091546126,6.5265,153.23,153.14,6.0706]
[1723091546324,6.5286,153.17,153.14,6.0706]
[1723091546537,6.5286,153.17,153.1,6.6253]
[1723091546841,6.5274,153.2,153.1,6.6253]
[1723091547032,20.0,153.19,153.1,6.6253]
[1723091547418,0.17,153.21,153.1,6.6253]
[1723091548229,6.5282,153.19,153.16,0.834356]
[1723091548535,6.5284,153.18,153.16,0.834356]
[1723091548716,1.29808497,153.17,153.16,0.834356]
[1723091548917,0.34,153.19,153.16,0.834356]
[1723091549117,6.5282,153.18,153.16,0.834356]
[1723091549527,6.5286,153.17,153.16,0.834356]
[1723091549729,26.8686,153.17,153.16,0.834356]
[1723091549924,26.6986,153.17,153.16,0.834356]
[1723091550460,28.16668497,153.17,153.16,0.834356]
[1723091550742,389.1,153.22,153.16,0.834356]
[1723091550936,6.5278,153.19,153.16,0.834356]
[1723091551136,1.29808497,153.19,153.16,0.834356]
[1723091551646,6.5282,153.18,153.16,0.834356]
[1723091551851,21.29808497,153.21,153.16,0.834356]
[1723091551852,20.0,153.21,153.16,0.834356]
[1723091552141,0.17,153.2,153.16,0.834356]
[1723091552529,1.46808497,153.2,153.16,0.834356]
[1723091553051,0.17,153.2,153.16,0.834356]
[1723091553258,1.46808497,153.2,153.16,0.834356]
[1723091553425,0.17,153.2,153.16,0.834356]
[1723091553625,6.5283,153.18,153.16,0.834356]
[1723091553928,6.5278,153.19,153.16,0.834356]
[1723091554125,6.8683,153.18,153.16,0.834356]
[1723091554336,6.5283,153.18,153.16,0.834356]
[1723091554540,6.6974,153.2,153.16,0.834356]
[1723091554740,6.5282,153.18,153.16,0.834356]
[1723091554952,1.29808497,153.17,153.16,0.834356]
[1723091555125,6.5279,153.19,153.16,0.834356]
[1723091555325,1.29808497,153.18,153.16,0.834356]
[1723091555548,6.7544109,153.25,153.16,0.834356]
[1723091556048,6.7544109,153.25,153.17,16.4399]
[1723091556629,6.5261,153.23,153.17,16.4399]
[1723091556841,6.7544109,153.25,153.17,16.4399]
[1723091556842,1.29808497,153.24,153.17,16.4399]
[1723091557033,1.29808497,153.23,153.17,16.4399]
[1723091557436,0.17,153.22,153.17,16.4399]
[1723091557639,0.34,153.22,153.17,16.4399]
[1723091557837,6.5278,153.19,153.17,16.4399]
[1723091558036,6.5274,153.2,153.17,16.4399]
[1723091558253,6.527,153.21,153.17,16.4399]
[1723091558551,6.5263,153.23,153.17,16.4399]
[1723091558752,17.41995143,153.27,153.17,16.4399]
[1723091558753,6.5265,153.22,153.17,16.4399]
[1723091559123,6.5261,153.23,153.17,16.4399]
[1723091559529,1.29808497,153.22,153.17,16.4399]
[1723091559729,6.5274,153.2,153.17,16.4399]
[1723091560360,0.17,153.21,153.16,0.834356]
[1723091560548,6.5278,153.19,153.16,0.834356]
[1723091560857,6.5282,153.18,153.16,0.834356]
[1723091561058,0.17,153.19,153.1,6.6253]
[1723091561245,26.5288,153.17,153.1,6.6253]
[1723091561559,20.0,153.17,153.1,6.6253]
[1723091562326,1.29808497,153.16,153.1,6.6253]
[1723091563054,7.82718497,153.16,153.1,6.6253]
[1723091563256,21.29808497,153.18,153.1,6.6253]
[1723091563484,0.17,153.17,153.1,6.6253]
[1723091563836,20.0,153.18,153.1,6.6253]
[1723091564235,6.5274,153.2,153.1,6.6253]
[1723091564756,7.82508497,153.21,153.1,6.6253]
[1723091564940,6.527,153.21,153.1,6.6253]
[1723091565141,1.29808497,153.21,153.11,15.9822]
[1723091565348,1.29808497,153.2,153.11,15.9822]
[1723091566460,2.63815312,153.24,153.11,15.9822]
[1723091566461,1.29808497,153.23,153.11,15.9822]
[1723091566657,33.92373146,153.26,153.11,15.9822]
[1723091566658,0.17,153.22,153.11,15.9822]
[1723091567063,6.527,153.21,153.11,15.9822]
[1723091567265,6.5276,153.2,153.11,15.9822]
[1723091567770,1.29808497,153.2,153.11,15.9822]
[1723091568152,7.82558497,153.2,153.11,15.9822]
[1723091569351,0.17,153.19,153.11,15.9822]
[1723091569549,26.5273,153.21,153.11,15.9822]
[1723091569750,0.17,153.2,153.11,15.9822]
[1723091569955,26.5273,153.21,153.11,15.9822]
[1723091570672,1.29808497,153.2,153.09,15.0493]
[1723091570871,0.34,153.19,153.09,15.0493]
[1723091571061,1.29808497,153.18,153.09,15.0493]
[1723091571265,0.34,153.17,153.09,15.0493]
[1723091571571,21.63808497,153.17,153.09,15.0493]
[1723091571873,45.0,153.16,153.09,15.0493]
[1723091572071,6.5304,153.13,153.09,15.0493]
[1723091572863,45.0,153.16,153.09,15.0493]
[1723091572864,6.5313,153.11,153.09,15.0493]
[1723091573256,0.34,153.14,153.09,15.0493]
[1723091573461,46.29808497,153.16,153.09,15.0493]
[1723091573462,6.5304,153.13,153.09,15.0493]
[1723091573864,0.34,153.15,153.09,15.0493]
[1723091574077,1.29808497,153.14,153.09,15.0493]
[1723091574273,0.34,153.13,153.09,15.0493]
[1723091574482,21.6012,153.12,153.01,0.834356]
[1723091574685,21.29808497,153.11,153.01,0.834356]
[1723091574978,1.29808497,153.1,153.01,0.834356]
[1723091575175,0.34,153.09,153.01,0.834356]
[1723091575354,6.5338,153.05,153.01,0.834356]
[1723091575681,1.63808497,153.09,153.01,0.834356]
[1723091575886,20.0,153.09,153.01,0.834356]
[1723091576056,409.1,153.11,153.01,0.834356]
[1723091576373,1.63808497,153.1,153.01,0.834356]
[1723091576579,6.5326,153.08,153.01,0.834356]
[1723091576777,20.0,153.07,153.01,0.834356]
[1723091577276,6.5323,153.09,153.01,0.834356]
[1723091577578,20.0,153.08,153.01,0.834356]
[1723091577760,26.5316,153.1,153.01,0.834356]
[1723091577952,389.1,153.11,153.01,0.834356]
[1723091578157,6.5314,153.11,153.01,0.834356]
[1723091578356,2.67771088,153.14,153.01,0.834356]
[1723091578357,7.82998497,153.1,153.01,0.834356]
[1723091578584,1.29808497,153.14,153.01,0.834356]
[1723091578793,1.29808497,153.15,153.02,21.7608]
[1723091579100,2.68829263,153.15,153.02,21.7608]
[1723091579380,1.29808497,153.15,153.02,21.7608]
[1723091579554,6.5309,153.12,153.02,21.7608]
[1723091579954,1.29808497,153.17,153.02,21.7608]
[1723091580380,6.5308,153.12,153.02,21.7608]
[1723091580574,6.5297,153.15,153.02,21.7608]
[1723091580778,21.29808497,153.14,153.02,21.7608]
[1723091581171,20.0,153.13,153.02,21.7608]
[1723091581690,6.5295,153.15,153.02,21.7608]
[1723091581973,6.5295,153.15,153.03,45.17]
[1723091582185,20.0,153.14,153.03,45.17]
[1723091582372,21.29808497,153.14,153.02,21.7608]
[1723091582562,6.532,153.1,153.02,21.7608]
[1723091582767,1.29808497,153.13,153.02,21.7608]
[1723091583081,6.5331,153.07,153.02,21.7608]
[1723091583290,1.29808497,153.06,153.02,21.7608]
[1723091583858,6.5331,153.07,153.02,21.7608]
[1723091584187,6.5342,153.04,153.02,15.6352]
[1723091584359,7.83188497,153.05,153.02,15.6352]
[1723091584556,6.5338,153.05,153.02,15.6352]
[1723091584770,6.5338,153.05,153.01,0.834356]
[1723091585479,6.7034,153.06,153.01,0.834356]
[1723091585683,21.29808497,153.05,153.01,0.834356]
[1723091585856,20.0,153.05,153.01,0.834356]
[1723091586284,1.29808497,153.1,153.01,0.834356]
[1723091586461,20.0,153.11,153.01,0.834356]
[1723091586666,1.29808497,153.1,153.01,0.834356]
[1723091587372,6.5334,153.06,153.01,0.834356]
[1723091587573,1.29808497,153.05,153.01,0.834356]
[1723091587883,20.0,153.06,153.01,0.834356]
[1723091588263,6.5327,153.08,153.01,0.834356]
[1723091588582,27.83098497,153.07,153.01,0.834356]
[1723091588798,7.83098497,153.07,153.01,0.834356]
[1723091590386,6.5329,153.07,153.01,0.834356]
[1723091590767,1.29808497,153.06,153.01,0.834356]
[1723091591087,6.5329,153.07,153.01,0.834356]
[1723091591591,6.5325,153.08,153.01,0.834356]
[1723091591884,20.0,153.07,153.01,0.834356]
[1723091592280,26.533,153.07,153.01,0.834356]
[1723091592465,1.29808497,153.06,153.01,0.834356]
[1723091592667,26.5329,153.07,153.01,0.834356]
[1723091592861,20.0,153.07,153.01,0.834356]
[1723091593063,26.5327,153.08,153.01,0.834356]
[1723091593583,8.06965871,153.1,153.01,0.834356]
[1723091593584,13.30357374,153.1,153.01,0.834356]
[1723091593885,6.5312,153.11,153.01,0.834356]
[1723091594106,6.77074541,153.1,153.01,0.834356]
[1723091594281,6.5611,153.09,153.01,0.834356]
[1723091594461,6.5338,153.05,153.01,0.834356]
[1723091594989,26.5344,153.04,153.01,0.834356]
[1723091595572,6.5344,153.04,153.01,0.834356]
[1723091595881,1.29808497,153.03,153.01,0.834356]
[1723091596073,6.5344,153.04,153.01,0.834356]
[1723091596481,1.29808497,153.03,153.01,0.834356]
[1723091597563,6.5331,153.07,153.01,0.834356]
[1723091597768,20.0,153.06,153.01,0.834356]
[1723091597980,2.67832629,153.09,153.01,7.145456]
[1723091598195,402.40244541,153.1,153.01,7.145456]
[1723091599065,6.77074541,153.1,153.02,15.2441]
[1723091599267,1.29808497,153.18,153.07,15.2441]
[1723091599462,6.5299,153.15,153.07,15.2441]
[1723091599662,6.5291,153.16,153.07,15.2441]
[1723091600074,1.29808497,153.16,153.07,15.2441]
[1723091600277,7.82768497,153.15,153.07,15.2441]
[1723091600493,6.5291,153.16,153.07,15.2441]
[1723091600672,1.29808497,153.15,153.07,15.2441]
[1723091600872,1.29808497,153.14,153.07,15.2441]
[1723091601068,21.29808497,153.2,153.07,15.2441]
[1723091601766,6.529,153.17,153.07,15.2441]
[1723091601965,20.0,153.16,153.07,15.2441]
[1723091603198,21.29808497,153.2,153.07,15.2441]
[1723091603594,6.5287,153.17,153.07,15.2441]
[1723091603899,20.0,153.16,153.07,15.2441]
[1723091604194,31.6323895,153.23,153.09,6.1749]
[1723091604392,9.4580895,153.23,153.11,16.1039]
[1723091604780,2.68247464,153.23,153.11,16.1039]
[1723091604982,260.116,153.32,153.13,16.1039]
[1723091604983,6.77173487,153.26,153.13,16.1039]
[1723091605177,6.5252,153.26,153.17,6.614]
[1723091605377,6.5243,153.28,153.17,6.614]
[1723091605604,253.6,153.32,153.18,38.01527483]
[1723091605777,253.6,153.32,153.18,36.71]
[1723091606104,253.6,153.32,153.16,22.8545]
[1723091606105,36.71,153.3,153.16,22.8545]
[1723091606274,16.3119,153.27,153.16,22.8545]
[1723091606474,7.58728497,153.26,153.16,22.8545]
[1723091607005,6.5272,153.21,153.16,22.8545]
[1723091607293,0.17,153.25,153.16,22.8545]
[1723091607507,6.5258,153.24,153.16,22.8545]
[1723091607688,20.0,153.23,153.16,22.8545]
[1723091607891,26.5261,153.23,153.16,22.8545]
[1723091608403,20.0,153.23,153.16,22.8545]
[1723091608605,6.5246,153.27,153.16,22.8545]
[1723091609290,6.5017,153.3,153.16,22.8545]
[1723091609481,6.5246,153.27,153.16,22.8545]
[1723091609677,6.524,153.28,153.16,59.5645]
[1723091609996,6.77343711,153.32,153.17,1.30522206]
[1723091610190,22.3584,153.34,153.18,1.30513685]
[1723091610394,6.5231,153.3,153.18,1.30513685]
[1723091610573,6.3037,153.34,153.16,59.5645]
[1723091610783,6.3037,153.34,153.16,22.8545]
[1723091610784,6.5271,153.21,153.16,22.8545]
[1723091611015,6.5278,153.19,153.16,22.8545]
[1723091611218,1.29808497,153.25,153.16,22.8545]
[1723091611389,1.29808497,153.25,153.16,16.5583]
[1723091611582,6.5278,153.2,153.16,16.5583]
[1723091612102,6.5269,153.22,153.16,16.5583]
[1723091612317,26.5271,153.21,153.16,16.5583]
[1723091612489,20.0,153.21,153.16,16.5583]
[1723091612696,6.5275,153.2,153.16,16.5583]
[1723091613498,6.5272,153.21,153.16,16.5583]
[1723091614209,20.0,153.2,153.16,16.5583]
[1723091614504,2.57868572,153.28,153.16,16.5583]
[1723091614679,22.6673,153.3,153.16,16.5583]
[1723091614876,16.3123,153.26,153.16,16.5583]
[1723091615079,6.5275,153.2,153.16,16.5583]
[1723091615490,6.5278,153.19,153.16,16.5583]
[1723091615698,6.5282,153.18,153.16,16.5583]
[1723091615879,1.29808497,153.18,153.16,16.5583]
[1723091616081,20.0,153.19,153.16,16.5583]
[1723091616283,20.0,153.21,153.16,16.5583]
[1723091617280,20.0,153.22,153.16,16.5583]
[1723091617495,6.5257,153.25,153.16,16.5583]
[1723091617706,1.29808497,153.25,153.16,16.5583]
[1723091617888,6.5265,153.22,153.16,16.5583]
[1723091618089,1.29808497,153.21,153.16,16.5583]
[1723091618293,6.5265,153.22,153.16,16.5583]
[1723091618483,6.5257,153.24,153.16,16.5583]
[1723091618701,1.29808497,153.23,153.16,16.5583]
[1723091618882,6.5266,153.22,153.16,16.5583]
[1723091619082,20.0,153.21,153.16,16.5583]
[1723091619908,6.5248,153.26,153.17,1.30527859]
[1723091621392,6.5253,153.25,153.16,16.5583]
[1723091621592,20.0,153.24,153.16,16.5583]
[1723091621987,6.78487535,153.3,153.17,7.9293377]
[1723091622193,6.5214,153.35,153.22,16.6046]
[1723091622408,6.5214,153.34,153.23,46.30470834]
[1723091622591,6.5214,153.34,153.23,83.01470834]
[1723091623611,16.2982,153.4,153.24,24.38229852]
[1723091623812,6.5206,153.36,153.25,45.0]
[1723091624116,1.29808497,153.39,153.25,45.0]
[1723091624481,6.5214,153.35,153.25,45.0]
[1723091625415,6.5201,153.38,153.26,1.30445093]
[1723091625591,260.38496422,153.41,153.26,0.17]
[1723091625592,6.5202,153.37,153.26,0.17]
[1723091625909,20.0,153.36,153.26,0.17]
[1723091626110,6.5197,153.38,153.27,22.5333]
[1723091626711,6.5202,153.37,153.27,22.5333]